[Event "Icelandic Championship 2022"]
[Site "Selfoss"]
[Date "2022.04.25"]
[Round "5.3"]
[White "Mai, Alexander Oliver"]
[Black "Thorhallsson, Simon"]
[Result "1-0"]
[ECO "B42"]
[WhiteElo "2207"]
[BlackElo "2245"]
[Annotator "TA"]
[PlyCount "83"]
[EventDate "2022.04.21"]
[EventType "tourn"]
[EventCountry "ISL"]
[SourceTitle "playchess.com"]
[Source "ChessBase"]
[SourceQuality "1"]
[TimeControl "40/5400+30:1800+30"]

{[%evp 14,83,21,11,39,8,52,37,26,8,40,45,37,34,66,45,133,129,132,134,174,122,157,160,162,165,229,281,270,273,258,249,262,240,261,235,256,274,265,268,464,502,505,505,510,495,480,483,697,683,784,783,790,769,758,741,813,685,845,858,1064,1061,1174,1166,1627,1481,1927,1539,2083,1807,5273,2303]} 1. e4 {[%emt 0:00:02]} c5 {[%emt 0:00:13]} 2. Nf3 {[%emt 0:00:08]} e6 {[%emt 0:00:08]} 3. d4 {[%emt 0:00:10]} cxd4 {[%emt 0:00:06]} 4. Nxd4 {[%emt 0:00:07]} a6 {[%emt 0:00:07]} 5. Bd3 {[%emt 0:00:10]} Bc5 {[%emt 0:00:10]} 6. Nb3 {[%emt 0:00:07]} Ba7 {[%emt 0:00:07]} 7. Qg4 {[%emt 0:00:19]} Nf6 {[%emt 0:00:43]} 8. Qg3 {[%emt 0:00:23]} d6 {[%emt 0:02:10] B42: Sicilian: Kan Variation: 5 Bd3.} 9. Nc3 {[%emt 0:00:37]} (9. Qxg7 Rg8 10. Qh6 Bxf2+ $1 11. Kd1 Rxg2 $17) (9. O-O {keeps more tension.} O-O 10. Nc3 Nh5 11. Qf3) 9... b5 {[%emt 0:00:53]} 10. a3 {[%emt 0:04:34]} (10. Qxg7 Bxf2+ $1 11. Kd1 (11. Kxf2 Rg8 $17) 11... Rg8 $15) 10... Nc6 {[%emt 0:04:17] White is slightly better.} 11. Bg5 {[%emt 0:01:50]} (11. Qxg7 Rg8 12. Qh6 Bxf2+ $1 {[%mdl 512]} 13. Kd1 Rg6 $17) 11... Ne5 {[%emt 0:05:54] [#]} (11... h6 $5 {[%cal Rh6g5]} 12. Bd2 Ne5 $11) 12. f4 $146 {[%emt 0:05:19]} ({Predecessor:} 12. Rd1 Bd7 13. O-O h6 14. Be3 Nh5 15. Qh3 Bxe3 16. Qxe3 Qh4 17. g3 Qe7 18. Be2 {½-½ (18) Wittmann,W (2295)-Lanka,Z (2469) Graz 2011}) 12... Nxd3+ {[%emt 0:03:26]} 13. Qxd3 {[%emt 0:00:04]} h6 {[%emt 0:13:42]} 14. Bxf6 {[%emt 0:03:05]} gxf6 {[%emt 0:01:05] Black is on the road to losing.} (14... Qxf6 $14 15. Qxd6 Qd8 16. Qxd8+ Kxd8) 15. O-O-O $16 {[%emt 0:01:21]} Bb7 {[%emt 0:01:17]} 16. f5 {[%emt 0:05:51]} (16. Qxd6 $6 Be3+ 17. Kb1 Qxd6 18. Rxd6 Bxf4 $11) 16... Qb6 {[%emt 0:05:57]} 17. Rhe1 {[%emt 0:15:05] Inhibits Qe3+.} (17. Qxd6 Qxd6 18. Rxd6 Rd8 19. Rxd8+ Kxd8 $11) ({White should try} 17. fxe6 $18 fxe6 18. Kb1 (18. Qxd6 Qxd6 19. Rxd6 Rd8 $11)) 17... O-O-O {[%emt 0:02:39]} 18. fxe6 {[%emt 0:02:14] &Bianco is more active.} fxe6 {[%emt 0:00:07] [#]} 19. Qh3 $1 {[%emt 0:00:38] Black must now prevent Nd5.} Rhe8 {[%emt 0:04:04] [#]} (19... Rde8 {might work better.} 20. Nd5 Qd8) 20. Nd5 $1 $18 {[%emt 0:03:51]} (20. Qxh6 Qf2 $14) 20... Qf2 {[%emt 0:14:33]} 21. Rf1 {[%emt 0:02:57][%cal Be1f1,Bf1f3,Bf3c3,Bc3c8][%mdl 32]} Qe2 {[%emt 0:00:25]} 22. Rde1 {[%emt 0:01:48] Chess con chili.} (22. Rxf6 Qxe4 23. Rf7 Bxd5 $11) (22. Nxf6 Qe3+ 23. Qxe3 Bxe3+ 24. Kb1 Re7 $16) 22... Qc4 {[%emt 0:00:24]} 23. Nxf6 {[%emt 0:13:42] Pair of Knights!} ({Much less strong is} 23. Rxf6 Bxd5 24. exd5 Qxd5 25. Rfxe6 Rxe6 26. Rxe6 (26. Qxe6+ Qxe6 27. Rxe6 Kd7 $16) 26... Kb8 27. Rxh6 Bb6 $18) 23... Re7 {[%emt 0:01:27]} 24. Rf3 {[%emt 0:02:01] Strongly threatening Rc3.} Kb8 {[%emt 0:03:04]} (24... Rc7 $2 25. Rc3 $18) 25. Rc3 {[%emt 0:01:08]} Qa4 {[%emt 0:00:13]} 26. Qxh6 {[%emt 0:04:28]} Rc8 $2 {[%emt 0:08:19]} (26... b4 27. axb4 Qxb4) 27. Rxc8+ {[%emt 0:01:42] White is clearly winning.} Bxc8 {[%emt 0:00:07]} 28. Qf8 {[%emt 0:02:32]} Rc7 {[%emt 0:01:14] [#] Threatens to win with ...Qxb3.} 29. Qxd6 $1 {[%emt 0:04:21]} Qc4 {[%emt 0:00:43][%csl Gc7][%cal Rc4c2]} 30. Kb1 {[%emt 0:00:48]} Qxc2+ {[%emt 0:05:45]} (30... Bf2 $142 31. Rc1 Be3) 31. Ka2 {[%emt 0:00:07] Hoping for Rc1.} Kb7 {[%emt 0:00:25]} 32. Rc1 {[%emt 0:03:16]} Qxc1 {[%emt 0:00:23]} 33. Nxc1 {[%emt 0:00:04]} Rxc1 {[%emt 0:00:05]} 34. Qd2 {[%emt 0:01:45]} Rc6 {[%emt 0:00:50]} 35. Nd7 {[%emt 0:06:58]} Kc7 {[%emt 0:03:59]} 36. Ne5 {[%emt 0:00:33]} Rd6 {[%emt 0:01:31]} 37. Qg5 {[%emt 0:01:47]} Kb8 {[%emt 0:03:18]} 38. h4 {[%emt 0:02:55][%cal Bh2h4,Bh4h5,Bh5h6][%mdl 32]} Bd4 {[%emt 0:02:25]} 39. Qf4 {[%emt 0:01:05] And now Nc6+ would win.} Ka7 {[%emt 0:02:40]} 40. h5 {[%emt 0:00:29]} Bb7 {[%emt 0:00:49]} 41. h6 {[%emt 0:31:13]} b4 {[%emt 0:30:30]} 42. axb4 {[%emt 0:01:20] Weighted Error Value: White=0.10 (very precise) /Black=0.38} (42. h7 $142 Bxe5 43. Qxe5) 1-0

[Event "Icelandic Championship 2022"]
[Site "Selfoss"]
[Date "2022.04.25"]
[Round "5.4"]
[White "Heimisson, Hilmir Freyr"]
[Black "Thorhallsson, Throstur"]
[Result "0-1"]
[ECO "E01"]
[WhiteElo "2312"]
[BlackElo "2414"]
[Annotator "TA"]
[PlyCount "110"]
[EventDate "2022.04.21"]
[EventType "tourn"]
[EventCountry "ISL"]
[SourceTitle "playchess.com"]
[Source "ChessBase"]
[SourceQuality "1"]
[TimeControl "40/5400+30:1800+30"]

{[%evp 11,110,17,25,27,45,38,39,26,30,43,50,40,75,40,57,16,41,67,56,19,34,35,87,0,0,-30,-19,-25,-26,-12,-7,-113,-50,-52,-40,-55,-55,-123,-81,-178,-170,-253,-252,-215,-217,-272,-154,-282,-284,-372,-386,-407,-390,-344,-337,-352,-249,-287,-300,-281,-261,-354,-359,-367,-371,-411,-407,-575,-583,-838,-638,-925,-777,-792,-759,-795,-789,-787,-801,-801,-801,-782,-772,-907,-903,-1168,-1193,-1052,-959,-4837,-4837,-4829,-4664,-29979,-29980,-29980,-29981,-6223,-5942,-29983,-29984]} 1. d4 {[%emt 0:00:05]} Nf6 {[%emt 0:01:59]} 2. c4 {[%emt 0:00:13]} e6 {[%emt 0:00:52]} 3. Nf3 {[%emt 0:00:11]} d5 {[%emt 0:00:36]} 4. g3 {[%emt 0:00:30]} Bb4+ {[%emt 0:01:16]} 5. Nbd2 {[%emt 0:00:09]} O-O {[%emt 0:00:39]} 6. Bg2 {[%emt 0:00:12]} Nbd7 {[%emt 0:04:44]} 7. O-O {[%emt 0:00:26] E01: Catalan: Early deviations.} c6 {[%emt 0:06:39]} 8. Qc2 {[%emt 0:00:17]} Be7 {[%emt 0:02:34] 8...b6 is setting a new trend.} 9. Rd1 {[%emt 0:04:30] White is slightly better.} b6 {[%emt 0:02:23]} 10. e4 {[%emt 0:03:38][%cal Be2e4,Be4e5][%mdl 32]} Ba6 {[%emt 0:13:13]} 11. b3 {[%emt 0:10:58]} Rc8 {[%emt 0:01:46]} 12. Bb2 {[%emt 0:00:16] [#]} (12. e5 $5 {[%cal Re5f6]} Ne8 13. Nf1 $14) 12... c5 $146 {[%emt 0:09:43]} ({Predecessor:} 12... Qc7 13. e5 Ne8 14. Nf1 Qb8 15. Ne3 Nc7 16. h4 h6 17. Rac1 Bb7 18. Qe2 c5 19. dxc5 Nxc5 {1-0 (59) Loetscher,R (2416)-Huss,A (2382) Bern 2014}) 13. e5 {[%emt 0:06:43]} Ne8 {[%emt 0:00:16]} 14. Rac1 {[%emt 0:02:38]} cxd4 {[%emt 0:06:52]} 15. Qd3 {[%emt 0:18:17]} Nc7 {[%emt 0:07:50]} 16. Qxd4 {[%emt 0:06:14]} f5 {[%emt 0:04:12]} (16... b5 $14) 17. h4 {[%emt 0:12:09]} (17. cxd5 $16 {d6 is the strong threat.} Bc5 18. Qh4 Qxh4 19. Nxh4 Nxd5 20. Nc4) 17... f4 $11 {[%emt 0:07:56] Hoping for ...Bc5.} 18. Nf1 {[%emt 0:09:15][%cal Rc4d5]} (18. gxf4 Bc5 19. Qc3 Rxf4 $17) 18... Bc5 {[%emt 0:01:02]} 19. Qd2 {[%emt 0:00:33]} fxg3 {[%emt 0:00:30]} 20. Nxg3 {[%emt 0:00:28]} Qe7 {[%emt 0:01:45]} 21. Bd4 {[%emt 0:04:10]} (21. a3 $11) 21... Bb7 {[%emt 0:04:12]} ({Black should try} 21... h6 $17 22. h5 dxc4 23. bxc4 Bb7) 22. Qg5 $15 {[%emt 0:05:00]} Qf7 {[%emt 0:03:08] Threatens to win with ...dxc4.} 23. Qe3 {[%emt 0:00:51]} h6 {[%emt 0:02:29] Inhibits Ng5.} 24. Rc3 {[%emt 0:04:09] White is on the road to losing.} (24. Bxc5 $15 Nxc5 25. Nd4) 24... Ba8 {[%emt 0:02:37]} 25. h5 {[%emt 0:02:48] [#]} (25. Qe2 $17 {might work better.}) 25... Bb4 $1 $19 {[%emt 0:02:43]} ({Stronger than} 25... dxc4 26. Bxc5 Nxc5 27. bxc4 $15) 26. Rcd3 {[%emt 0:00:19]} (26. Nh4 $142 Bxc3 27. Bxc3) 26... Nc5 {[%emt 0:01:09]} 27. Bxc5 {[%emt 0:00:16]} Bxc5 {[%emt 0:00:30]} ({But not} 27... bxc5 28. Nh4 $14) 28. Qe2 {[%emt 0:01:08]} Qf4 {[%emt 0:01:21]} ({Better is} 28... Qe7 $19 29. a3 a5) 29. Nd4 {[%emt 0:01:39]} (29. Rd4 $17 Bxd4 30. Rxd4 Qc1+ 31. Rd1) 29... Qh4 {[%emt 0:01:09] aiming for ...Rf4.} 30. Nf1 {[%emt 0:02:22]} Rf4 {[%emt 0:01:40][%cal Rc5d4]} ({Not} 30... dxc4 $2 31. bxc4 Bxg2 32. Kxg2 $19) 31. Rh3 {[%emt 0:01:57]} Qe7 {[%emt 0:00:59]} 32. Nf3 {[%emt 0:01:44]} Rcf8 {[%emt 0:01:16]} 33. N1h2 {[%emt 0:00:54]} R8f5 {[%emt 0:01:53]} 34. Qd3 {[%emt 0:01:30]} Qf7 {[%emt 0:01:10]} 35. Rd2 {[%emt 0:00:49]} Rxh5 {[%emt 0:01:11]} 36. Rxh5 {[%emt 0:00:01]} Qxh5 {[%emt 0:00:08]} 37. Qe2 {[%emt 0:00:44]} Qf5 {[%emt 0:01:46]} 38. Rd3 {[%emt 0:00:34]} g5 {[%emt 0:01:32][%cal Bg7g5,Bg5g4][%mdl 32] White must now prevent ...g4.} 39. Kh1 {[%emt 0:00:31]} (39. b4 $142 Bxb4 40. Rd4) 39... g4 {[%emt 0:01:25]} 40. Ne1 {[%emt 0:00:45]} h5 {[%emt 0:00:39]} 41. Rd1 {[%emt 0:12:43]} Rxf2 {[%emt 0:02:01]} 42. Qd3 {[%emt 0:00:09]} Qxd3 {[%emt 0:02:40]} 43. Nxd3 {[%emt 0:01:05] [#]} Rxg2 $1 {[%emt 0:02:50]} 44. Kxg2 {[%emt 0:00:14]} dxc4+ {[%emt 0:00:06]} 45. Kg3 {[%emt 0:01:05]} cxd3 {[%emt 0:00:06]} 46. Rxd3 {[%emt 0:00:17]} Nd5 {[%emt 0:00:51]} 47. Nf1 {[%emt 0:01:40]} Bc6 {[%emt 0:01:04]} 48. Nd2 {[%emt 0:02:10]} Bb5 {[%emt 0:01:35]} 49. Nc4 {[%emt 0:00:18]} Kg7 {[%emt 0:00:33]} 50. a4 {[%emt 0:01:02]} Bxc4 {[%emt 0:00:31]} 51. bxc4 {[%emt 0:00:02]} Ne7 {[%emt 0:01:57] ( -> ...a5)} 52. Rd7 {[%emt 0:01:48]} a5 {[%emt 0:00:00]} 53. Kf4 {[%emt 0:01:25]} Kh6 {[%emt 0:00:00]} 54. Rd2 {[%emt 0:09:53]} Ng6+ {[%emt 0:00:31]} 55. Ke4 {[%emt 0:00:23]} h4 {[%emt 0:00:13] Weighted Error Value: White=0.93/Black=0.16 (very precise)} 0-1

[Event "Icelandic Championship 2022"]
[Site "Selfoss"]
[Date "2022.04.25"]
[Round "5.5"]
[White "Gretarsson, Hjorvar Steinn"]
[Black "Kjartansson, Gudmundur"]
[Result "1/2-1/2"]
[ECO "C55"]
[WhiteElo "2548"]
[BlackElo "2450"]
[Annotator "TA"]
[PlyCount "101"]
[EventDate "2022.04.21"]
[EventType "tourn"]
[EventCountry "ISL"]
[SourceTitle "playchess.com"]
[Source "ChessBase"]
[SourceQuality "1"]
[TimeControl "40/5400+30:1800+30"]

{[%evp 12,101,35,25,32,34,35,22,27,25,29,31,65,62,62,69,76,64,62,77,69,75,45,52,50,46,61,35,77,0,6,0,0,-16,0,0,0,0,0,-19,0,0,0,0,0,0,0,0,0,0,0,-57,-48,-54,-56,-60,-56,-58,-58,-54,-54,-119,-116,-130,-121,-104,-116,-117,0,0,22,23,23,23,23,23,31,31,74,74,74,73,74,66,59,59,59,59,59,59,59,59]} 1. e4 {[%emt 0:00:14]} e5 {[%emt 0:00:11]} 2. Nf3 {[%emt 0:00:24]} Nc6 {[%emt 0:00:06]} 3. Bc4 {[%emt 0:00:06]} Nf6 {[%emt 0:00:14]} 4. d3 {[%emt 0:00:04]} Be7 {[%emt 0:03:31]} 5. O-O {[%emt 0:01:48]} O-O {[%emt 0:00:14]} 6. Re1 {[%emt 0:03:02]} d6 {[%emt 0:00:18]} 7. a3 {[%emt 0:01:46]} h6 {[%emt 0:03:00] C55: Two Knights: 4 d3, 4 d4 exd4 5 e5 and Max Lange Attack.} 8. Nbd2 {[%emt 0:02:03]} Nh7 {[%emt 0:01:52]} 9. Nf1 {[%emt 0:07:47]} Ng5 {[%emt 0:00:33] The position is equal.} 10. c3 {[%emt 0:05:14]} Bg4 {[%emt 0:08:10]} 11. Bxg5 {[%emt 0:01:03] [#]} hxg5 $146 {[%emt 0:02:33]} ({Predecessor:} 11... Bxg5 12. h3 Bd7 13. d4 Bf6 14. Qd2 Kh7 15. Rad1 Na5 16. Ba2 Ba4 17. Rb1 Bb3 18. Bxb3 Nxb3 {1-0 (35) Giri,A (2780)-Iordachescu,V (2591) Batumi 2018}) 12. Ne3 {[%emt 0:08:11]} Bd7 {[%emt 0:02:52]} 13. h3 {[%emt 0:01:57] Inhibits g4.} Qc8 {[%emt 0:08:26]} 14. d4 {[%emt 0:08:50]} Bf6 {[%emt 0:07:26]} 15. Qd3 {[%emt 0:10:25]} g4 {[%emt 0:12:34]} 16. hxg4 {[%emt 0:00:06]} Bxg4 {[%emt 0:00:06]} 17. Nh2 {[%emt 0:11:10]} Bd7 {[%emt 0:03:02][%cal Re5d4]} 18. Nd5 {[%emt 0:00:40]} Qd8 {[%emt 0:01:37][%cal Re5d4]} 19. Rad1 {[%emt 0:02:39] 0x0.00249b13221edp-1022s more active pieces. The black rooks are badly placed.} g6 {[%emt 0:05:46]} 20. Nxf6+ {[%emt 0:10:48]} (20. f4 $16) 20... Qxf6 $11 {[%emt 0:00:13]} 21. Qg3 {[%emt 0:00:53]} Kg7 {[%emt 0:05:38]} 22. Bb5 {[%emt 0:03:10]} Qf4 {[%emt 0:06:26]} 23. Qxf4 {[%emt 0:04:00]} exf4 {[%emt 0:00:03]} 24. f3 {[%emt 0:03:26]} Rh8 {[%emt 0:02:58]} 25. e5 {[%emt 0:03:35]} Rh5 {[%emt 0:02:47]} 26. Bxc6 {[%emt 0:00:51]} bxc6 {[%emt 0:00:45]} 27. Nf1 {[%emt 0:02:08]} Rb8 {[%emt 0:05:54]} 28. b4 {[%emt 0:00:05]} dxe5 {[%emt 0:00:12]} 29. Rxe5 {[%emt 0:01:40]} Rxe5 {[%emt 0:00:11]} 30. dxe5 {[%emt 0:00:15][%mdl 4096] Endgame KRB-KRN} Be6 {[%emt 0:00:10]} 31. Rd4 {[%emt 0:00:42]} ({Better is} 31. g3 $11) 31... g5 $15 {[%emt 0:00:10]} 32. g3 {[%emt 0:01:02]} c5 {[%emt 0:00:35]} 33. bxc5 {[%emt 0:01:04]} Rb3 {[%emt 0:02:52][%csl LRa3,LRc3]} 34. gxf4 {[%emt 0:00:04]} gxf4 {[%emt 0:00:04]} 35. Rxf4 {[%emt 0:02:40]} Rxa3 {[%emt 0:01:31]} 36. Kf2 {[%emt 0:01:06] [#]} (36. Ne3 $15) 36... a5 $1 $17 {[%emt 0:01:02]} ({Stronger than} 36... Rxc3 37. Ra4 $15) 37. Ne3 {[%emt 0:00:57]} Rxc3 {[%emt 0:11:23]} 38. Rd4 {[%emt 0:00:22]} Rxc5 {[%emt 0:00:19]} 39. f4 {[%emt 0:00:03] [#]} f6 {[%emt 0:00:57]} ({Black should play} 39... Kf8 $1 $17 40. Kf3 Bb3 41. Rd8+ Ke7) 40. f5 $11 {[%emt 0:00:35]} fxe5 {[%emt 0:02:37]} 41. Rg4+ {[%emt 0:30:07]} Kf7 {[%emt 0:30:13] Strongly threatening ...Bd7.} 42. fxe6+ {[%emt 0:00:08]} Kxe6 {[%emt 0:00:04] KRN-KR} 43. Ke2 {[%emt 0:00:29]} Rc3 {[%emt 0:00:00]} 44. Ra4 {[%emt 0:07:23]} c5 {[%emt 0:00:00]} 45. Rxa5 {[%emt 0:00:00]} e4 {[%emt 0:00:00]} 46. Ra8 {[%emt 0:00:00]} Ke5 {[%emt 0:00:00]} 47. Re8+ {[%emt 0:00:00]} Kd4 {[%emt 0:00:00] White is slightly better.} 48. Rd8+ {[%emt 0:00:00]} Ke5 {[%emt 0:00:00]} 49. Rd5+ {[%emt 0:00:00]} Ke6 {[%emt 0:00:00][%cal Oc3e3] ( -> ...Rxe3+!)} 50. Rh5 {[%emt 0:00:00]} Kd6 {[%emt 0:00:00]} 51. Rh6+ {[%emt 0:00:00] Weighted Error Value: White=0.11 (very precise) /Black=0.09 (flawless)} 1/2-1/2

[Event "Icelandic Championship 2022"]
[Site "Selfoss"]
[Date "2022.04.26"]
[Round "6.1"]
[White "Kjartansson, Gudmundur"]
[Black "Thorhallsson, Throstur"]
[Result "1/2-1/2"]
[ECO "E06"]
[WhiteElo "2450"]
[BlackElo "2414"]
[Annotator "TA"]
[PlyCount "74"]
[EventDate "2022.04.21"]
[EventType "tourn"]
[EventCountry "ISL"]
[SourceTitle "playchess.com"]
[Source "ChessBase"]
[SourceQuality "1"]
[TimeControl "40/5400+30:1800+30"]

{[%evp 18,74,18,10,14,17,7,11,3,0,0,6,6,0,0,0,11,0,0,-8,-4,-34,-32,-36,0,0,0,-17,0,-31,-11,-54,-4,-34,-7,-41,-6,-6,-6,-6,-7,-7,0,0,0,0,0,0,0,0,0,0,0,0,0,0,0,0,0]} 1. c4 {[%emt 0:00:05]} e6 {[%emt 0:01:11]} 2. g3 {[%emt 0:00:11]} d5 {[%emt 0:01:04]} 3. Bg2 {[%emt 0:00:09]} Nf6 {[%emt 0:00:36]} 4. Nf3 {[%emt 0:00:14]} Be7 {[%emt 0:01:06]} 5. d4 {[%emt 0:00:24]} O-O {[%emt 0:00:10]} 6. Nc3 {[%emt 0:00:16]} dxc4 {[%emt 0:02:40]} 7. Ne5 {[%emt 0:00:13]} c5 {[%emt 0:04:11]} 8. dxc5 {[%emt 0:00:44]} Qxd1+ {[%emt 0:03:02]} 9. Nxd1 {[%emt 0:00:07]} Bxc5 {[%emt 0:00:32]} 10. O-O {[%emt 0:02:19]} Nc6 {[%emt 0:11:30] E06: Closed Catalan: Early deviations.} 11. Bxc6 {[%emt 0:01:55]} bxc6 {[%emt 0:00:11]} 12. Be3 {[%emt 0:00:50]} Bb6 {[%emt 0:03:04]} 13. Bxb6 {[%emt 0:01:02]} axb6 {[%emt 0:00:06]} 14. Nc3 {[%emt 0:00:23]} Nd5 {[%emt 0:12:28] [#]} 15. Nxc6 $146 {[%emt 0:03:41]} ({Predecessor:} 15. a4 f6 16. Nxc4 Rb8 17. Rfc1 Ba6 18. Ne4 Rfc8 19. Kf1 c5 20. b3 Rc6 21. Ke1 Bxc4 22. Rxc4 {½-½ (43) Le,Q (2709)-Nakamura,H (2736) chess24.com INT 2021}) 15... Nxc3 {[%emt 0:06:55]} 16. bxc3 {[%emt 0:00:26]} ({But not} 16. Ne7+ Kh8 17. bxc3 Bd7 $17) 16... Bb7 {[%emt 0:04:11]} 17. Nb4 {[%emt 0:01:46]} Rfd8 {[%emt 0:02:09]} 18. Rfd1 {[%emt 0:01:45]} Kf8 {[%emt 0:00:28]} 19. Kf1 {[%emt 0:13:13]} Ke7 {[%emt 0:02:35]} 20. Ke1 {[%emt 0:02:18]} g5 {[%emt 0:04:40]} 21. Rxd8 {[%emt 0:06:32]} Rxd8 $11 {[%emt 0:00:13][%mdl 4096] Endgame KRB-KRN} 22. Rb1 {[%emt 0:02:03]} g4 {[%emt 0:07:33]} 23. Rd1 {[%emt 0:14:02]} Rc8 {[%emt 0:03:01]} 24. Kd2 {[%emt 0:02:24]} Rc5 {[%emt 0:01:34]} ({Black should play} 24... Ra8 $15) 25. Nc2 {[%emt 0:04:01]} Ra5 {[%emt 0:03:21]} 26. a3 {[%emt 0:08:48]} Be4 {[%emt 0:09:00]} 27. Ne3 {[%emt 0:06:38][%csl LRc4,LRg4] The position is equal.} b5 {[%emt 0:02:39]} 28. Nxg4 {[%emt 0:00:44]} Rxa3 {[%emt 0:00:18]} 29. Ne3 {[%emt 0:05:20]} Kd6 {[%emt 0:06:12]} 30. f3 {[%emt 0:00:33]} Bg6 {[%emt 0:00:13]} 31. Nc2 {[%emt 0:03:19]} Bxc2 {[%emt 0:00:15]} 32. Kxc2+ {[%emt 0:00:03] KR-KR} Kc6 {[%emt 0:01:08] [#] aiming for ...Ra2+.} 33. Rd8 {[%emt 0:05:50]} Ra2+ {[%emt 0:00:21]} 34. Kd1 {[%emt 0:00:11]} Ra1+ {[%emt 0:01:46]} 35. Kd2 {[%emt 0:00:06]} Ra2+ {[%emt 0:00:03]} 36. Kd1 $1 {[%emt 0:00:14]} Ra1+ {[%emt 0:00:04]} 37. Kd2 {[%emt 0:00:04]} Ra2+ {[%emt 0:00:17] Weighted Error Value: White=0.08 (flawless) /Black=0.08 (flawless)} 1/2-1/2

[Event "Icelandic Championship 2022"]
[Site "Selfoss"]
[Date "2022.04.26"]
[Round "6.2"]
[White "Thorhallsson, Simon"]
[Black "Steingrimsson, Hedinn"]
[Result "0-1"]
[ECO "D30"]
[WhiteElo "2245"]
[BlackElo "2535"]
[Annotator "TA"]
[PlyCount "78"]
[EventDate "2022.04.21"]
[EventType "tourn"]
[EventCountry "ISL"]
[SourceTitle "playchess.com"]
[Source "ChessBase"]
[SourceQuality "1"]
[TimeControl "40/5400+30:1800+30"]

{[%evp 13,78,20,39,14,19,25,17,12,16,14,15,26,34,27,35,0,-2,-14,0,-16,-23,-40,-38,-110,-119,-108,-123,-117,-127,-209,-80,-85,-69,-68,-37,-45,-45,-161,-159,-194,-61,-67,-75,-72,-70,-111,-21,-42,-72,-106,-116,-227,-203,-412,-412,-394,-390,-745,-743,-739,-725,-723,-720,-671,-657,-632,-575]} 1. d4 {[%emt 0:00:02]} d5 {[%emt 0:07:04]} 2. c4 {[%emt 0:00:15]} c6 {[%emt 0:00:03]} 3. Nf3 {[%emt 0:00:26]} Nf6 {[%emt 0:00:05]} 4. e3 {[%emt 0:06:31]} e6 {[%emt 0:01:39]} 5. Bd3 {[%emt 0:01:33]} dxc4 {[%emt 0:01:54]} 6. Bxc4 {[%emt 0:00:13]} Nbd7 {[%emt 0:03:02]} 7. O-O {[%emt 0:01:56]} b5 {[%emt 0:00:43]} 8. Be2 {[%emt 0:04:14] D30: Queen's Gambit Declined: Systems without Nc3.} Bb7 {[%emt 0:00:40]} 9. b3 {[%emt 0:01:05]} Be7 {[%emt 0:00:36]} 10. Bb2 {[%emt 0:00:20] The position is equal.} O-O {[%emt 0:00:07]} 11. Nbd2 {[%emt 0:05:40]} Rc8 {[%emt 0:06:07] [#]} 12. Ne5 $146 {[%emt 0:11:58]} ({Predecessor:} 12. a3 Qc7 13. b4 Nb6 14. Nb3 Na4 15. Qc2 Rfd8 16. Rac1 Qb8 17. Ba1 Nd5 18. Na5 {1-0 (59) Ptaszynski,P (1800)-Lebiedzinski,M (1800) Wloclawek 2014}) 12... Qb6 {[%emt 0:09:19]} 13. Nxd7 {[%emt 0:08:03]} Nxd7 {[%emt 0:00:03]} 14. Bf3 {[%emt 0:09:09]} Rfd8 {[%emt 0:02:58]} 15. Rc1 {[%emt 0:02:11]} c5 {[%emt 0:03:26]} 16. Bxb7 {[%emt 0:05:56]} Qxb7 {[%emt 0:00:02]} 17. Qf3 {[%emt 0:02:51]} Qa6 {[%emt 0:02:16]} 18. Rc2 {[%emt 0:07:20]} ({White should try} 18. a3 $15) 18... cxd4 $17 {[%emt 0:14:15]} (18... Qxa2 $2 19. Ra1 cxd4 20. Rxa2 $18) 19. Rxc8 {[%emt 0:00:18]} Qxc8 {[%emt 0:00:57]} (19... Rxc8 20. Bxd4 e5 21. Qf5 $15) 20. Rc1 {[%emt 0:02:09] Inhibits Qc2.} Qa6 {[%emt 0:01:20]} (20... Ne5 $6 21. Qe4 (21. Qg3 Nc6 $15) 21... Qb8 22. Bxd4 $11) 21. Bxd4 {[%emt 0:00:09]} (21. exd4 $17 {is a better defense.} Qxa2 22. Qc3) 21... Qxa2 {[%emt 0:00:47]} (21... e5 $1 $19 {[%cal Re5d4] is more deadly.} 22. Ba1 Qxa2) 22. Qd1 {[%emt 0:02:02] Hoping for Ra1.} Qa3 {[%emt 0:11:29]} 23. Qc2 {[%emt 0:04:17]} a5 {[%emt 0:13:32]} 24. Ra1 $1 {[%emt 0:03:20]} Qb4 {[%emt 0:00:45]} 25. Bc3 {[%emt 0:01:41] [#]} (25. h3 $15) 25... Qc5 $1 $19 {[%emt 0:00:52] Threatens to win with ...b4.} 26. Qb2 {[%emt 0:04:54] [#]} Bf6 {[%emt 0:01:55]} (26... Rc8 $1 $19 27. Bd4 Qc7) 27. Bxf6 $15 {[%emt 0:00:23]} Nxf6 {[%emt 0:00:04]} 28. Rxa5 {[%emt 0:00:29] [#]} Ne4 $1 $36 {[%emt 0:02:44][%mdl 2048] Black has the initiative.} 29. Nf1 {[%emt 0:01:24]} (29. b4 Qc7) 29... Qb4 {[%emt 0:03:22] &Nero is much more active.} ({Black should play} 29... h6 $17 {And now ...Rd1 would win.} 30. b4 Qc3 31. Qxc3 Nxc3) 30. Ra7 {[%emt 0:05:17]} h6 {[%emt 0:03:11]} 31. Ra1 {[%emt 0:02:09] Against Rd1} Rd3 {[%emt 0:02:35][%cal Bd8d3,Bd3b3,Bb3b1,Bb1f1][%mdl 32]} 32. Qe5 {[%emt 0:02:45]} (32. f3 $17 Nd6 33. Rb1) 32... Rxb3 $19 {[%emt 0:01:11] Strongly threatening ...Rb1.} 33. Ra8+ $2 {[%emt 0:01:45]} (33. f3 {was called for.} Nd2 34. Qf4 Qxf4 35. exf4) 33... Kh7 {[%emt 0:00:00] ...Rb1 is the strong threat.} 34. Ra7 {[%emt 0:00:08]} (34. Qb8 Qe1 35. Qf4 Nd2 36. h4 Nxf1 37. g4 Nd2+ 38. Kg2 Rb1 39. Qh2 Qd1) 34... Rb1 {[%emt 0:01:15]} 35. Rxf7 $2 {[%emt 0:02:36] [#]} (35. h3) 35... Rxf1+ $1 {[%emt 0:01:02][%mdl 512] Black is clearly winning.} 36. Kxf1 {[%emt 0:00:03]} Qb1+ {[%emt 0:01:27]} 37. Ke2 {[%emt 0:00:04]} Qc2+ {[%emt 0:00:03]} 38. Kf3 {[%emt 0:00:08]} Ng5+ {[%emt 0:00:02]} 39. Kg3 {[%emt 0:00:36][%csl Gf7][%cal Re5g7]} Nxf7 {[%emt 0:00:03] Weighted Error Value: White=0.46/Black=0.16 (very precise)} 0-1